fUSD/lending_fUSD_20250403
["ID","MTS","AMOUNT","RATE_DAILY","PERIOD"]
[357056485,1743663051825,-196.90944937,0.0004,30]
[357056486,1743663051854,-19237.19525255,0.0004,30]
[357056487,1743663051881,-579.1238131,0.0004,120]
[357056488,1743663051910,-7409.98798074,0.0004,30]
[357056489,1743663051937,-1746.98419682,0.0004,120]
[357056490,1743663051964,-702.32690114,0.0004,30]
[357056491,1743663051992,-326.0,0.0004,120]
[357056492,1743663052018,-247.86508966,0.0004,120]
[357056493,1743663052045,-194.65958767,0.0004,120]
[357056494,1743663052073,-444.0,0.0004,120]
[357056495,1743663052103,-153.27,0.00041,120]
[357056496,1743663052131,-689.91928813,0.00041,120]
[357056497,1743663052158,-500.0,0.00041,120]
[357056498,1743663052186,-300.0,0.00041096,30]
[357056499,1743663052213,-666.19783207,0.00041096,31]
[357056500,1743663052242,-666.19783207,0.00041096,31]
[357056501,1743663052268,-666.19783207,0.00041096,31]
[357056502,1743663052294,-666.19783207,0.00041096,31]
[357056503,1743663052318,-666.19783207,0.00041096,31]
[357056504,1743663052346,-666.19783207,0.00041096,31]
[357056505,1743663052371,-666.19783207,0.00041096,31]
[357056506,1743663052397,-666.19783207,0.00041096,31]
[357056507,1743663052424,-666.19783207,0.00041096,31]
[357056508,1743663052450,-666.19783207,0.00041096,31]
[357056509,1743663052477,-666.19783207,0.00041096,31]
[357056510,1743663052504,-666.19783207,0.00041096,31]
[357056511,1743663052530,-666.19783207,0.00041096,31]
[357056512,1743663052555,-666.19783207,0.00041096,31]
[357056513,1743663052583,-666.19783207,0.00041096,31]
[357056514,1743663052607,-666.19783207,0.00041096,31]
[357056515,1743663052633,-2779.6764646,0.00041096,31]
[357056516,1743663052659,-2779.6764646,0.00041096,31]
[357056517,1743663052684,-2779.6764646,0.00041096,31]
[357056518,1743663052709,-2779.6764646,0.00041096,31]
[357056519,1743663052735,-2779.6764646,0.00041096,31]
[357056520,1743663052760,-2779.6764646,0.00041096,31]
[357056521,1743663052786,-2779.6764646,0.00041096,31]
[357056522,1743663052811,-2779.6764646,0.00041096,31]
[357056523,1743663052838,-1066.0,0.00041576,30]
[357056524,1743663052864,-156.633324,0.00041584,30]
[357056525,1743663052889,-156.987229,0.00041584,30]
[357056526,1743663052915,-800.0,0.000418,120]
[357056527,1743663053118,-295.2,0.00042,120]
[357056528,1743663053145,-678.91,0.00042,120]
[357056529,1743663053171,-231.15,0.00042,120]
[357056530,1743663053196,-176.62,0.00042,120]
[357056531,1743663053224,-261.5,0.00042,120]
[357056532,1743663053251,-2345.0,0.000426,120]
[357056533,1743663053275,-156.987229,0.00042624,30]
[357056534,1743663053303,-2691.12102546,0.0004278,60]
[357056535,1743663053329,-155.83,0.00042784,120]
[357056536,1743663053355,-509.60863771,0.000428,120]
[357056537,1743663053382,-1834973.89458811,0.000428,120]
[357056538,1743663060171,-165026.10541189,0.000428,120]
[357056539,1743663060198,-4460.41404416,0.00043,120]
[357056540,1743663060229,-495.73017932,0.00043,120]
[357056541,1743663060259,-389.31917533,0.00043,120]
[357056542,1743663060287,-13267.15717153,0.00043,30]
[357056543,1743663060319,-219.42108718,0.00043143,30]
[357056544,1743663060350,-181.0,0.00043151,90]
[357056545,1743663060377,-6383.05433246,0.0004321,120]
[357056546,1743663060405,-500.0,0.0004356,60]
[357056547,1743663060432,-156.987229,0.00043663,30]
[357056548,1743663060461,-1666.78049476,0.000437,120]
[357056549,1743663060489,-1066.0,0.00043764,30]
[357056550,1743663060516,-1847.5852208,0.00043799,120]
[357056551,1743663060543,-374.08,0.0004383,120]
[357056552,1743663060570,-1000.0,0.00043835,120]
[357056553,1743663060598,-641.01039144,0.00043836,120]
[357056554,1743663060625,-641.01039144,0.00043836,120]
[357056555,1743663060651,-641.01039144,0.00043836,120]
[357056556,1743663060678,-641.01039144,0.00043836,120]
[357056557,1743663060705,-641.01039144,0.00043836,120]
[357056558,1743663060732,-641.01039144,0.00043836,120]
[357056559,1743663060758,-641.01039144,0.00043836,120]
[357056560,1743663060784,-641.01039144,0.00043836,120]
[357056561,1743663060810,-641.01039144,0.00043836,120]
[357056562,1743663060836,-641.01039144,0.00043836,120]
[357056563,1743663060864,-641.01039144,0.00043836,120]
[357056564,1743663060892,-641.01039144,0.00043836,120]
[357056565,1743663060919,-641.01039144,0.00043836,120]
[357056566,1743663060947,-641.01039144,0.00043836,120]
[357056567,1743663060974,-641.01039144,0.00043836,120]
[357056568,1743663061002,-641.01039144,0.00043836,120]
[357056569,1743663061030,-641.01039144,0.00043836,120]
[357056570,1743663061058,-641.01039144,0.00043836,120]
[357056571,1743663061085,-641.01039144,0.00043836,120]
[357056572,1743663061115,-641.01039144,0.00043836,120]
[357056573,1743663061143,-641.01039144,0.00043836,120]
[357056574,1743663061171,-641.01039144,0.00043836,120]
[357056575,1743663061198,-641.01039144,0.00043836,120]
[357056576,1743663061228,-641.01039144,0.00043836,120]
[357056577,1743663061255,-641.01039144,0.00043836,120]
[357056578,1743663061283,-641.01039144,0.00043836,120]
[357056579,1743663061309,-641.01039144,0.00043836,120]
[357056580,1743663061336,-641.01039144,0.00043836,120]
[357056581,1743663061364,-641.01039144,0.00043836,120]
[357056582,1743663061391,-641.01039144,0.00043836,120]
[357056583,1743663061417,-641.01039144,0.00043836,120]
[357056584,1743663061444,-641.01039144,0.00043836,120]
[357056585,1743663061634,-641.01039144,0.00043836,120]
[357056586,1743663061661,-641.01039144,0.00043836,120]
[357056587,1743663061687,-641.01039144,0.00043836,120]
[357056588,1743663061714,-641.01039144,0.00043836,120]
[357056589,1743663061740,-641.01039144,0.00043836,120]
[357056590,1743663061767,-641.01039144,0.00043836,120]
[357056591,1743663061792,-641.01039144,0.00043836,120]
[357056592,1743663061818,-641.01039144,0.00043836,120]
[357056593,1743663061844,-641.01039144,0.00043836,120]
[357056594,1743663061870,-641.01039144,0.00043836,120]
[357056595,1743663061898,-641.01039144,0.00043836,120]
[357056596,1743663061939,-641.01039144,0.00043836,120]
[357056597,1743663061980,-641.01039144,0.00043836,120]
[357056598,1743663062022,-641.01039144,0.00043836,120]
[357056599,1743663062063,-641.01039144,0.00043836,120]
[357056600,1743663062103,-641.01039144,0.00043836,120]
[357056601,1743663062144,-641.01039144,0.00043836,120]
[357056602,1743663062185,-641.01039144,0.00043836,120]
[357056603,1743663062227,-636.07954227,0.00043836,120]
[357056604,1743663062266,-636.07954227,0.00043836,120]
[357056605,1743663062304,-636.07954227,0.00043836,120]
[357056606,1743663062345,-636.07954227,0.00043836,120]
[357056607,1743663062383,-636.07954227,0.00043836,120]
[357056608,1743663062424,-636.07954227,0.00043836,120]
[357056609,1743663062466,-636.07954227,0.00043836,120]
[357056610,1743663062508,-636.07954227,0.00043836,120]
[357056611,1743663062549,-636.07954227,0.00043836,120]
[357056612,1743663062587,-636.07954227,0.00043836,120]
[357056613,1743663062627,-636.07954227,0.00043836,120]
[357056614,1743663062665,-636.07954227,0.00043836,120]
[357056615,1743663062702,-636.07954227,0.00043836,120]
[357056616,1743663062742,-636.07954227,0.00043836,120]
[357056617,1743663062779,-636.07954227,0.00043836,120]
[357056618,1743663062815,-636.07954227,0.00043836,120]
[357056619,1743663062853,-636.07954227,0.00043836,120]
[357056620,1743663062890,-636.07954227,0.00043836,120]
[357056621,1743663062929,-636.07954227,0.00043836,120]
[357056622,1743663062967,-636.07954227,0.00043836,120]
[357056623,1743663063006,-636.07954227,0.00043836,120]
[357056624,1743663063049,-636.07954227,0.00043836,120]
[357056625,1743663063092,-636.07954227,0.00043836,120]
[357056626,1743663063135,-636.07954227,0.00043836,120]
[357056627,1743663063177,-636.07954227,0.00043836,120]
[357056628,1743663063219,-616.50786405,0.00043836,120]
[357056629,1743663063262,-616.50786405,0.00043836,120]
[357056630,1743663063301,-616.50786405,0.00043836,120]
[357056631,1743663063342,-616.50786405,0.00043836,120]
[357056632,1743663063383,-616.50786405,0.00043836,120]
[357056633,1743663063425,-616.50786405,0.00043836,120]
[357056634,1743663063464,-616.50786405,0.00043836,120]
[357056635,1743663063505,-616.50786405,0.00043836,120]
[357056636,1743663063553,-616.50786405,0.00043836,120]
[357056637,1743663063591,-616.50786405,0.00043836,120]
[357056638,1743663063632,-616.50786405,0.00043836,120]
[357056639,1743663063670,-616.50786405,0.00043836,120]
[357056640,1743663063710,-616.50786405,0.00043836,120]
[357056641,1743663063749,-1000.0,0.00043863,120]
[357056642,1743663063788,-211.75177,0.00043888,30]
[357056643,1743663063827,-327.06260093,0.0004389,120]
[357056644,1743663063865,-216.434028,0.000439,120]
[357056645,1743663063905,-150.00478414,0.00044,60]
[357056646,1743663063943,-9217.0,0.00044,120]
[357056647,1743663063985,-200.0,0.00044,120]
[357056648,1743663064024,-4682.3721545,0.00044,120]
[357056649,1743663064065,-354.77715112,0.00044,120]
[357056650,1743663064107,-378.08129525,0.00044,120]
[357056651,1743663064148,-211.75177,0.00044088,30]
[357056652,1743663064191,-500.0,0.00044108,120]
[357056653,1743663064231,-49590.74,0.000442,60]
[357056654,1743663064273,-211.75177,0.00044288,30]
[357056655,1743663064314,-500.0,0.00044382,120]
[357056656,1743663064355,-209.0,0.0004446,30]
[357056657,1743663064398,-211.75177,0.00044488,30]
[357056658,1743663064443,-300.0,0.000445,30]
[357056659,1743663064483,-500.0,0.00044656,120]
[357056660,1743663064525,-500.0,0.00044656,120]
[357056661,1743663064565,-211.75177,0.00044688,30]
[357056662,1743663064605,-696.84353179,0.000448,120]
[357056663,1743663064644,-211.75177,0.00044888,30]
[357056664,1743663064687,-910.85314116,0.000449,30]
[357056665,1743663064727,-500.0,0.0004493,120]
[357056666,1743663064766,-500.0,0.0004493,120]
[357056667,1743663064805,-2860.22369759,0.00045,120]
[357056668,1743663064844,-2000.0,0.00045,120]
[357056669,1743663064884,-150.0,0.00045,85]
[357056670,1743663064925,-81667.55983188,0.00045,120]
[357056671,1743663064963,-4300.0,0.00045,120]
[357056672,1743663065002,-610.83,0.00045,120]
[357056673,1743663065042,-160.0,0.00045,120]
[357056674,1743663065082,-151.80799545,0.00045,60]
[357056675,1743663065122,-500.0,0.00045,120]
[357056676,1743663065159,-350.0,0.00045,30]
[357056677,1743663065196,-151.0,0.00045,120]
[357056678,1743663065235,-387.33556834,0.00045,120]
[357056679,1743663065273,-301.8233536,0.00045,120]
[357056680,1743663065312,-3580.54423905,0.00045,120]
[357056681,1743663065349,-417.280048,0.00045,120]
[357056682,1743663065387,-211.75177,0.00045088,30]
[357056683,1743663065426,-209.0,0.0004517,30]
[357056684,1743663065463,-500.0,0.00045204,120]
[357056685,1743663065504,-211.75177,0.00045288,30]
[357056686,1743663065704,-500.0,0.00045478,120]
[357056687,1743663065748,-500.0,0.00045478,120]
[357056688,1743663065792,-211.75177,0.00045488,30]
[357056689,1743663065836,-211.0,0.0004555,30]
[357056690,1743663065881,-209.0,0.0004555,30]
[357056691,1743663065924,-211.75177,0.00045688,30]
[357056692,1743663065967,-49590.74,0.000457,60]
[357056693,1743663066009,-182.55686587,0.000457,120]
[357056694,1743663066049,-524.86930082,0.00045752,120]
[357056695,1743663066092,-2000000.0,0.000458,120]
[357056696,1743663066136,-211.75177,0.00045888,30]
[357056697,1743663066178,-619.66272415,0.00046,120]
[357056698,1743663066221,-486.64896917,0.00046,120]
[357056699,1743663066262,-500.0,0.00046026,120]
[357056700,1743663066303,-500.0,0.00046026,120]
[357056701,1743663066342,-1066.0,0.00046067,30]
[357056702,1743663066385,-211.75177,0.00046088,30]
[357056703,1743663066425,-209.0,0.0004628,30]
[357056704,1743663066468,-211.75177,0.00046288,30]
[357056705,1743663066509,-49590.73,0.000463,60]
[357056706,1743663066549,-211.75177,0.00046488,30]
[357056707,1743663066590,-500.0,0.00046574,120]
[357056708,1743663066630,-500.0,0.00046574,120]
[357056709,1743663066670,-1000.0,0.00046575,120]
[357056710,1743663066710,-1000.0,0.00046575,120]
[357056711,1743663066748,-211.0,0.0004663,30]
[357056712,1743663066787,-209.0,0.0004663,30]
[357056713,1743663066826,-211.75177,0.00046688,30]
[357056714,1743663066866,-349.51871885,0.00046789,120]
[357056715,1743663066906,-3266.788,0.000468,90]
[357056716,1743663066946,-1000.0,0.00046849,120]
[357056717,1743663066987,-944.63449038,0.000469,120]
[357056718,1743663067025,-1362.0,0.00047,60]
[357056719,1743663067064,-490.83551761,0.00047,120]
[357056720,1743663067106,-890.87212895,0.00047,120]
[357056721,1743663067143,-1009.94363383,0.00047,120]
[357056722,1743663067184,-989.97702545,0.00047,30]
[357056723,1743663067225,-211.75177,0.00047088,30]
[357056724,1743663067262,-49590.73,0.000471,60]
[357056725,1743663067299,-500.0,0.00047122,120]
[357056726,1743663067336,-500.0,0.00047122,120]
[357056727,1743663067388,-1000.0,0.00047123,120]
[357056728,1743663067429,-211.75177,0.00047288,30]
[357056729,1743663067470,-209.0,0.0004739,30]
[357056730,1743663067507,-1000.0,0.00047397,120]
[357056731,1743663067545,-211.75177,0.00047488,30]
[357056732,1743663067584,-500.0,0.0004767,120]
[357056733,1743663067622,-500.0,0.0004767,120]
[357056734,1743663067660,-1000.0,0.00047671,120]
[357056735,1743663067696,-211.75177,0.00047688,30]
[357056736,1743663067733,-155.83,0.0004771,120]
[357056737,1743663067772,-211.0,0.0004772,30]
[357056738,1743663067809,-209.0,0.0004772,30]
[357056739,1743663067848,-163.04031,0.00047798,120]
[357056740,1743663067886,-151.7293316,0.000478,120]
[357056741,1743663067923,-211.75177,0.00047888,30]
[357056742,1743663067962,-157.040314,0.00047898,120]
[357056743,1743663067999,-1000.0,0.00047945,120]
[357056744,1743663068039,-1000.0,0.00047945,120]
[357056745,1743663068078,-1000.0,0.00047991,120]
[357056746,1743663068116,-163.04031,0.00047998,120]
[357056747,1743663068156,-1305.0,0.00048,120]
[357056748,1743663068194,-317.019038,0.00048,49]
[357056749,1743663068237,-193.39040119,0.00048,120]
[357056750,1743663068278,-200.0,0.00048,120]
[357056751,1743663068316,-619.66272416,0.00048,120]
[357056752,1743663068357,-486.64896916,0.00048,120]
[357056753,1743663068398,-6000.0,0.00048,120]
[357056754,1743663068439,-211.75177,0.00048088,30]
[357056755,1743663068479,-1000.0,0.000481,120]
[357056756,1743663068521,-163.04031,0.00048198,120]
[357056757,1743663068562,-2939.76511658,0.000482,30]
[357056758,1743663068607,-153.97,0.000482,45]
[357056759,1743663068654,-153.97,0.000482,45]
[357056760,1743663068704,-153.97,0.000482,45]
[357056761,1743663068755,-153.97,0.000482,45]
[357056762,1743663068800,-153.97,0.000482,45]
[357056763,1743663068849,-153.97,0.000482,45]
[357056764,1743663068895,-153.97,0.000482,45]
[357056765,1743663068944,-153.97,0.000482,45]
[357056766,1743663068993,-153.97,0.000482,45]
[357056767,1743663069034,-500.0,0.00048218,120]
[357056768,1743663069078,-500.0,0.00048218,120]
[357056769,1743663069120,-1000.0,0.00048219,120]
[357056770,1743663069161,-211.75177,0.00048288,30]
[357056771,1743663069201,-163.04031,0.00048298,120]
[357056772,1743663069246,-211.75177,0.00048488,30]
[357056773,1743663069285,-209.0,0.0004849,30]
[357056774,1743663069325,-1066.0,0.00048492,30]
[357056775,1743663069365,-1000.0,0.00048493,120]
[357056776,1743663069405,-175.04031,0.00048498,120]
[357056777,1743663069445,-1000.0,0.000485,120]
[357056778,1743663069483,-1028.5945924,0.000485,120]
[357056779,1743663069523,-44555.33570252,0.000486,120]
[357056780,1743663069562,-513.17706914,0.00048626,30]
[357056781,1743663069602,-211.75177,0.00048688,30]
[357056782,1743663069641,-500.0,0.00048766,120]
[357056783,1743663069681,-500.0,0.00048766,120]
[357056784,1743663069720,-1000.0,0.00048767,120]
[357056785,1743663069759,-4435.67340738,0.0004879,120]
[357056786,1743663069798,-321.904,0.00048799,84]
[357056787,1743663069837,-1000.0,0.000488,120]
[357056788,1743663069876,-7780.66553924,0.000488,120]
[357056789,1743663069918,-1102.73246633,0.000488,120]
[357056790,1743663070127,-211.0,0.0004881,30]
[357056791,1743663070170,-209.0,0.0004881,30]
[357056792,1743663070218,-500.0,0.00048879,30]
[357056793,1743663070264,-5150.0,0.0004888,34]
[357056794,1743663070308,-211.75177,0.00048888,30]
[357056795,1743663070350,-500.0,0.0004894,30]
[357056796,1743663070395,-500.0,0.00048959,120]
[357056797,1743663070440,-500.0,0.00048959,120]
[357056798,1743663070483,-500.0,0.00048959,120]
[357056799,1743663070523,-500.0,0.00048959,120]
[357056800,1743663070565,-500.0,0.00048959,120]
[357056801,1743663070607,-500.0,0.00048959,120]
[357056802,1743663070649,-500.0,0.00048959,120]
[357056803,1743663070691,-500.0,0.00048959,120]
[357056804,1743663070734,-500.0,0.00048959,120]
[357056805,1743663070775,-500.0,0.00048959,120]
[357056806,1743663070815,-500.0,0.00048959,120]
[357056807,1743663070857,-500.0,0.00048959,120]
[357056808,1743663070899,-500.0,0.00048959,120]
[357056809,1743663070942,-500.0,0.00048959,120]
[357056810,1743663070985,-500.0,0.00048959,120]
[357056811,1743663071030,-500.0,0.00048959,120]
[357056812,1743663071074,-500.0,0.00048959,120]
[357056813,1743663071117,-500.0,0.00048959,120]
[357056814,1743663071159,-500.0,0.00048959,120]
[357056815,1743663071203,-500.0,0.00048959,120]
[357056816,1743663071247,-500.0,0.00048959,120]
[357056817,1743663071290,-500.0,0.00048959,120]
[357056818,1743663071332,-500.0,0.00048959,120]
[357056819,1743663071374,-479.44887229,0.00048959,120]
[357056820,1743663071418,-500.0,0.00048959,120]
[357056821,1743663071463,-500.0,0.00048959,120]
[357056822,1743663071503,-500.0,0.00048959,120]
[357056823,1743663071542,-500.0,0.00048959,120]
[357056824,1743663071584,-500.0,0.00048959,120]
[357056825,1743663071625,-500.0,0.00048959,120]
[357056826,1743663071666,-500.0,0.00048959,120]
[357056827,1743663071705,-500.0,0.00048959,120]
[357056828,1743663071745,-500.0,0.00048959,120]
[357056829,1743663071783,-500.0,0.00048959,120]
[357056830,1743663071823,-500.0,0.00048959,120]
[357056831,1743663071863,-250.0,0.00048959,120]
[357056832,1743663071902,-50000.0,0.00049,49]
[357056833,1743663071940,-1023.85367887,0.00049,30]
[357056834,1743663071976,-3177.74487361,0.00049,30]
[357056835,1743663072014,-1000.0,0.00049,120]
[357056836,1743663072052,-1052.55616937,0.00049,30]
[357056837,1743663072090,-500.0,0.00049,50]
[357056838,1743663072130,-1206.13392896,0.00049,120]
[357056839,1743663072170,-755.20670848,0.00049004,120]
[357056840,1743663072210,-1000.0,0.00049041,120]
[357056841,1743663072254,-211.75177,0.00049088,30]
[357056842,1743663072295,-500.0,0.00049168,30]
[357056843,1743663072334,-500.0,0.0004921,30]
[357056844,1743663072373,-211.75177,0.00049288,30]
[357056845,1743663072410,-277.67332121,0.00049314,120]
[357056846,1743663072448,-500.0,0.00049314,120]
[357056847,1743663072486,-240.0,0.00049315,30]
[357056848,1743663072523,-323.0,0.00049315,30]
[357056849,1743663072561,-240.0,0.00049315,30]
[357056850,1743663072599,-599.02686784,0.00049315,120]
[357056851,1743663072639,-599.02686784,0.00049315,120]
[357056852,1743663072679,-599.02686784,0.00049315,120]
[357056853,1743663072716,-599.02686784,0.00049315,120]
[357056854,1743663072756,-599.02686784,0.00049315,120]
[357056855,1743663072794,-599.02686784,0.00049315,120]
[357056856,1743663072833,-599.02686784,0.00049315,120]
[357056857,1743663072872,-599.02686784,0.00049315,120]
[357056858,1743663072914,-599.02686784,0.00049315,120]
[357056859,1743663072955,-599.02686784,0.00049315,120]
[357056860,1743663072994,-599.02686784,0.00049315,120]
[357056861,1743663073036,-599.02686784,0.00049315,120]
[357056862,1743663073079,-599.02686784,0.00049315,120]
[357056863,1743663073123,-599.02686784,0.00049315,120]
[357056864,1743663073164,-599.02686784,0.00049315,120]
[357056865,1743663073207,-599.02686784,0.00049315,120]
[357056866,1743663073250,-599.02686784,0.00049315,120]
[357056867,1743663073294,-599.02686784,0.00049315,120]
[357056868,1743663073334,-599.02686784,0.00049315,120]
[357056869,1743663073375,-599.02686784,0.00049315,120]
[357056870,1743663073415,-599.02686784,0.00049315,120]
[357056871,1743663073453,-599.02686784,0.00049315,120]
[357056872,1743663073494,-599.02686784,0.00049315,120]
[357056873,1743663073532,-599.02686784,0.00049315,120]
[357056874,1743663073574,-599.02686784,0.00049315,120]
[357056875,1743663073615,-599.02686784,0.00049315,120]
[357056876,1743663073656,-599.02686784,0.00049315,120]
[357056877,1743663073696,-599.02686784,0.00049315,120]
[357056878,1743663073736,-599.02686784,0.00049315,120]
[357056879,1743663073777,-599.02686784,0.00049315,120]
[357056880,1743663073820,-599.02686784,0.00049315,120]
[357056881,1743663073865,-599.02686784,0.00049315,120]
[357056882,1743663073910,-599.02686784,0.00049315,120]
[357056883,1743663073959,-599.02686784,0.00049315,120]
[357056884,1743663074008,-599.02686784,0.00049315,120]
[357056885,1743663074057,-599.02686784,0.00049315,120]
[357056886,1743663074104,-599.02686784,0.00049315,120]
[357056887,1743663074156,-593.03659916,0.00049315,120]
[357056888,1743663074203,-593.03659916,0.00049315,120]
[357056889,1743663074250,-593.03659916,0.00049315,120]
[357056890,1743663074295,-593.03659916,0.00049315,120]
[357056891,1743663074341,-593.03659916,0.00049315,120]
[357056892,1743663074387,-593.03659916,0.00049315,120]
[357056893,1743663074429,-593.03659916,0.00049315,120]
[357056894,1743663074623,-593.03659916,0.00049315,120]
[357056895,1743663074665,-593.03659916,0.00049315,120]
[357056896,1743663074707,-593.03659916,0.00049315,120]
[357056897,1743663074747,-593.03659916,0.00049315,120]
[357056898,1743663074789,-593.03659916,0.00049315,120]
[357056899,1743663074830,-593.03659916,0.00049315,120]
[357056900,1743663074871,-593.03659916,0.00049315,120]
[357056901,1743663074916,-593.03659916,0.00049315,120]
[357056902,1743663074960,-593.03659916,0.00049315,120]
[357056903,1743663075004,-593.03659916,0.00049315,120]
[357056904,1743663075047,-593.03659916,0.00049315,120]
[357056905,1743663075088,-593.03659916,0.00049315,120]
[357056906,1743663075131,-593.03659916,0.00049315,120]
[357056907,1743663075172,-593.03659916,0.00049315,120]
[357056908,1743663075214,-593.03659916,0.00049315,120]
[357056909,1743663075259,-593.03659916,0.00049315,120]
[357056910,1743663075302,-593.03659916,0.00049315,120]
[357056911,1743663075342,-593.03659916,0.00049315,120]
[357056912,1743663075382,-593.03659916,0.00049315,120]
[357056913,1743663075424,-582.72291917,0.00049315,120]
[357056914,1743663075463,-582.72291917,0.00049315,120]
[357056915,1743663075507,-582.72291917,0.00049315,120]
[357056916,1743663075547,-582.72291917,0.00049315,120]
[357056917,1743663075588,-582.72291917,0.00049315,120]
[357056918,1743663075631,-582.72291917,0.00049315,120]
[357056919,1743663075672,-582.72291917,0.00049315,120]
[357056920,1743663075715,-582.72291917,0.00049315,120]
[357056921,1743663075758,-582.72291917,0.00049315,120]
[357056922,1743663075798,-582.72291917,0.00049315,120]
[357056923,1743663075839,-582.72291917,0.00049315,120]
[357056924,1743663075882,-582.72291917,0.00049315,120]
[357056925,1743663075926,-582.72291917,0.00049315,120]
[357056926,1743663075967,-582.72291917,0.00049315,120]
[357056927,1743663076010,-582.72291917,0.00049315,120]
[357056928,1743663076053,-582.72291917,0.00049315,120]
[357056929,1743663076095,-582.72291917,0.00049315,120]
[357056930,1743663076140,-582.72291917,0.00049315,120]
[357056931,1743663076182,-582.72291917,0.00049315,120]
[357056932,1743663076227,-615.09641467,0.00049315,120]
[357056933,1743663076269,-615.09641467,0.00049315,120]
[357056934,1743663076311,-615.09641467,0.00049315,120]
[357056935,1743663076350,-615.09641467,0.00049315,120]
[357056936,1743663076389,-615.09641467,0.00049315,120]
[357056937,1743663076430,-1058.65374989,0.00049315,120]
[357056938,1743663076470,-1000.0,0.00049315,120]
[357056939,1743663076510,-514.0,0.00049315,120]
[357056940,1743663076551,-166.19786841,0.0004932,120]
[357056941,1743663076591,-192.1283685,0.0004932,120]
[357056942,1743663076632,-500.0,0.00049396,30]
[357056943,1743663076672,-500.0,0.00049417,30]
[357056944,1743663076712,-211.75177,0.00049488,30]
[357056945,1743663076750,-217.51742239,0.000495,120]
[357056946,1743663076786,-522.02846034,0.00049512,30]
[357056947,1743663076823,-183.174922,0.00049554,30]
[357056948,1743663076861,-500.0,0.00049608,30]
[357056949,1743663076900,-500.0,0.00049654,30]
[357056950,1743663076941,-150.0,0.00049676,120]
[357056951,1743663076982,-211.75177,0.00049688,30]
[357056952,1743663077025,-465.75236341,0.00049862,120]
[357056953,1743663077066,-211.75177,0.00049888,30]
[357056954,1743663077109,-211.0,0.0004989,30]
[357056955,1743663077153,-209.0,0.0004989,30]
[357056956,1743663077194,-2567.0,0.0004989,32]
[357056957,1743663077238,-32805.54862811,0.000499,120]
[357056958,1743663077277,-293.99,0.000499,120]
[357056959,1743663077317,-182.31819447,0.000499,38]
[357056960,1743663077355,-157.64825877,0.000499,120]
[357056961,1743663077396,-157.64825873,0.000499,120]
[357056962,1743663077439,-157.64825873,0.000499,120]
[357056963,1743663077480,-157.64825873,0.000499,120]
[357056964,1743663077524,-157.64825873,0.000499,120]
[357056965,1743663077568,-157.64825873,0.000499,120]
[357056966,1743663077608,-157.64825873,0.000499,120]
[357056967,1743663077651,-166.19,0.000499,120]
[357056968,1743663077693,-192.12,0.000499,120]
[357056969,1743663077734,-157.64825873,0.000499,120]
[357056970,1743663077773,-157.64825873,0.000499,120]
[357056971,1743663077812,-157.64825873,0.000499,120]
[357056972,1743663077854,-157.64825873,0.000499,120]
[357056973,1743663077896,-157.64825873,0.000499,120]
[357056974,1743663077938,-157.64825873,0.000499,120]
[357056975,1743663077981,-157.64825873,0.000499,120]
[357056976,1743663078026,-157.64825873,0.000499,120]
[357056977,1743663078071,-1500.0,0.0004997,34]
[357056978,1743663078118,-177.5938193,0.00049999,31]
[357056979,1743663078164,-450.5197531,0.00049999,120]
[357056980,1743663078212,-389.12640974,0.00049999,120]
[357056981,1743663078260,-666.19783207,0.00049999,120]
[357056982,1743663078305,-666.19783207,0.00049999,120]
[357056983,1743663078347,-666.19783207,0.00049999,120]
[357056984,1743663078390,-666.19783207,0.00049999,120]